[Event "*** Titled Tuesday Blitz"]
[Site "Chess.com"]
[Date "2020.12.29"]
[Round "1"]
[White "ehrenfeld"]
[Black "yoelpolanco"]
[Result "1-0"]
[WhiteElo "2554"]
[BlackElo "2246"]
[TimeControl "180+1"]
[EndTime "10:01:38 PST"]
[Termination "ehrenfeld won by resignation"]

1. e4 {[%clk 0:02:58.7]} 1... e5 {[%clk 0:03:00]} 2. Nc3 {[%clk 0:02:57.1]} 2...
Nf6 {[%clk 0:02:58.7]} 3. f4 {[%clk 0:02:55.7]} 3... d5 {[%clk 0:02:57.9]} 4.
fxe5 {[%clk 0:02:55.8]} 4... Nxe4 {[%clk 0:02:56.4]} 5. Qf3 {[%clk 0:02:55.8]}
5... Nxc3 {[%clk 0:02:54.7]} 6. bxc3 {[%clk 0:02:56]} 6... Be7 {[%clk
0:02:54.8]} 7. d4 {[%clk 0:02:56]} 7... O-O {[%clk 0:02:51.3]} 8. Bd3 {[%clk
0:02:56]} 8... c5 {[%clk 0:02:41.4]} 9. Ne2 {[%clk 0:02:55.7]} 9... g6 {[%clk
0:02:33.5]} 10. Bh6 {[%clk 0:02:52]} 10... c4 {[%clk 0:02:29]} 11. Bxf8 {[%clk
0:02:47]} 11... Bxf8 {[%clk 0:02:29.9]} 12. O-O {[%clk 0:02:45.5]} 12... cxd3
{[%clk 0:02:30]} 13. Qxf7+ {[%clk 0:02:44.2]} 13... Kh8 {[%clk 0:02:30.4]} 14.
Qxf8+ {[%clk 0:02:41.8]} 14... Qxf8 {[%clk 0:02:28.7]} 15. Rxf8+ {[%clk
0:02:41.1]} 15... Kg7 {[%clk 0:02:29.6]} 16. Rxc8 {[%clk 0:02:40.6]} 16... dxe2
{[%clk 0:02:30.1]} 17. Re1 {[%clk 0:02:38.2]} 1-0

[Event "*** Titled Tuesday Blitz"]
[Site "Chess.com"]
[Date "2020.12.29"]
[Round "1"]
[White "penguingm1"]
[Black "andriipalchuk"]
[Result "1-0"]
[WhiteElo "2938"]
[BlackElo "2468"]
[TimeControl "180+1"]
[EndTime "10:02:00 PST"]
[Termination "penguingm1 won by resignation"]

1. Nh3 {[%clk 0:02:57.2]} 1... Nf6 {[%clk 0:02:59.6]} 2. g3 {[%clk 0:02:55.9]}
2... e5 {[%clk 0:02:59.8]} 3. Bg2 {[%clk 0:02:54.7]} 3... d5 {[%clk 0:03:00.4]}
4. d4 {[%clk 0:02:54.4]} 4... c6 {[%clk 0:03:01]} 5. dxe5 {[%clk 0:02:54.4]}
5... Ng4 {[%clk 0:03:01.2]} 6. e4 {[%clk 0:02:14]} 6... Qb6 {[%clk 0:02:55.4]}
7. exd5 {[%clk 0:02:06.1]} 7... cxd5 {[%clk 0:02:53.5]} 8. O-O {[%clk 0:01:54]}
8... Nc6 {[%clk 0:02:52.4]} 9. Nc3 {[%clk 0:01:51.9]} 9... Be6 {[%clk
0:02:50.9]} 10. Nf4 {[%clk 0:01:47.4]} 10... Ngxe5 {[%clk 0:02:48.6]} 11. Ncxd5
{[%clk 0:01:43.2]} 1-0

[Event "*** Titled Tuesday Blitz"]
[Site "Chess.com"]
[Date "2020.12.29"]
[Round "1"]
[White "goldenpuppy"]
[Black "Rud_Makarian"]
[Result "0-1"]
[WhiteElo "2350"]
[BlackElo "2673"]
[TimeControl "180+1"]
[EndTime "10:02:01 PST"]
[Termination "Rud_Makarian won by resignation"]

1. e4 {[%clk 0:03:00.9]} 1... e5 {[%clk 0:02:59.8]} 2. Nf3 {[%clk 0:03:00.4]}
2... Nc6 {[%clk 0:03:00.3]} 3. d4 {[%clk 0:03:00.7]} 3... exd4 {[%clk
0:03:00.4]} 4. Nxd4 {[%clk 0:03:01.6]} 4... Nf6 {[%clk 0:03:01]} 5. Nc3 {[%clk
0:03:01.4]} 5... Bb4 {[%clk 0:03:00.9]} 6. Nxc6 {[%clk 0:03:02]} 6... bxc6
{[%clk 0:03:01.8]} 7. Bd3 {[%clk 0:03:02.1]} 7... d5 {[%clk 0:03:01.3]} 8. exd5
{[%clk 0:03:03]} 8... O-O {[%clk 0:03:01.9]} 9. O-O {[%clk 0:03:03.2]} 9... Bg4
{[%clk 0:03:02.5]} 10. Ne2 {[%clk 0:03:01.3]} 10... Qxd5 {[%clk 0:02:52.9]} 11.
f3 {[%clk 0:02:56.1]} 11... Bh5 {[%clk 0:02:51.8]} 12. Nf4 {[%clk 0:02:54.2]}
12... Qa5 {[%clk 0:02:43.9]} 13. Nxh5 {[%clk 0:02:48.9]} 13... Qxh5 {[%clk
0:02:42.2]} 14. f4 {[%clk 0:02:45.6]} 14... Ng4 {[%clk 0:02:38.6]} 15. h3 {[%clk
0:02:11.3]} 15... Bc5+ {[%clk 0:02:32.5]} 0-1

[Event "*** Titled Tuesday Blitz"]
[Site "Chess.com"]
[Date "2020.12.29"]
[Round "1"]
[White "brunomorado"]
[Black "dretch"]
[Result "0-1"]
[WhiteElo "2436"]
[BlackElo "2835"]
[TimeControl "180+1"]
[EndTime "10:03:33 PST"]
[Termination "dretch won by resignation"]

1. d4 {[%clk 0:02:53.3]} 1... d5 {[%clk 0:02:58.7]} 2. Nc3 {[%clk 0:02:53.6]}
2... Nf6 {[%clk 0:02:57.6]} 3. Bg5 {[%clk 0:02:53.8]} 3... e6 {[%clk 0:02:57.4]}
4. e4 {[%clk 0:02:54.1]} 4... dxe4 {[%clk 0:02:57.4]} 5. Nxe4 {[%clk 0:02:55]}
5... Be7 {[%clk 0:02:57.5]} 6. Bxf6 {[%clk 0:02:55.5]} 6... Bxf6 {[%clk
0:02:58.4]} 7. Ne2 {[%clk 0:02:55.8]} 7... Be7 {[%clk 0:02:56.2]} 8. g3 {[%clk
0:02:55.9]} 8... O-O {[%clk 0:02:54.7]} 9. Bg2 {[%clk 0:02:56.2]} 9... Nc6
{[%clk 0:02:53.6]} 10. c3 {[%clk 0:02:56.1]} 10... e5 {[%clk 0:02:46.7]} 11. d5
{[%clk 0:02:54.9]} 11... Nb8 {[%clk 0:02:46.1]} 12. O-O {[%clk 0:02:51.9]} 12...
f5 {[%clk 0:02:43.9]} 13. Nd2 {[%clk 0:02:48.8]} 13... Nd7 {[%clk 0:02:41.7]}
14. f4 {[%clk 0:02:42]} 14... e4 {[%clk 0:02:39.6]} 15. Nb3 {[%clk 0:02:41.6]}
15... Nb6 {[%clk 0:02:37.7]} 16. c4 {[%clk 0:02:26.3]} 16... Nxc4 {[%clk
0:02:37.1]} 17. Qd4 {[%clk 0:02:24.1]} 17... Nb6 {[%clk 0:02:36.3]} 18. Rac1
{[%clk 0:02:22.3]} 18... Nxd5 {[%clk 0:02:33.2]} 19. Rfd1 {[%clk 0:02:18.8]}
19... c6 {[%clk 0:02:32.7]} 20. Nc3 {[%clk 0:02:13]} 20... Be6 {[%clk 0:02:29]}
21. Nc5 {[%clk 0:02:12.4]} 21... Bxc5 {[%clk 0:02:28]} 22. Qxc5 {[%clk
0:02:12.4]} 22... Qb6 {[%clk 0:02:27.8]} 23. Na4 {[%clk 0:02:06.3]} 23... Qa6
{[%clk 0:02:24.7]} 24. b3 {[%clk 0:02:04.2]} 24... Qe2 {[%clk 0:02:11]} 25. Qd6
{[%clk 0:01:43.3]} 25... Rae8 {[%clk 0:02:08.4]} 26. Nc3 {[%clk 0:01:35.1]}
26... Qe3+ {[%clk 0:02:06.4]} 0-1

[Event "*** Titled Tuesday Blitz"]
[Site "Chess.com"]
[Date "2020.12.29"]
[Round "1"]
[White "Zemerovv"]
[Black "tvjosue"]
[Result "0-1"]
[WhiteElo "2185"]
[BlackElo "2527"]
[TimeControl "180+1"]
[EndTime "10:04:00 PST"]
[Termination "tvjosue won by resignation"]

1. g3 {[%clk 0:02:52.6]} 1... c5 {[%clk 0:02:58]} 2. Bg2 {[%clk 0:02:53.5]} 2...
Nc6 {[%clk 0:02:58.5]} 3. d3 {[%clk 0:02:54.4]} 3... g6 {[%clk 0:02:58.3]} 4.
Nd2 {[%clk 0:02:52.5]} 4... Bg7 {[%clk 0:02:58.6]} 5. e3 {[%clk 0:02:52.6]} 5...
d6 {[%clk 0:02:58.6]} 6. Ne2 {[%clk 0:02:53.5]} 6... e5 {[%clk 0:02:58.8]} 7. h3
{[%clk 0:02:53.4]} 7... Nge7 {[%clk 0:02:59.2]} 8. g4 {[%clk 0:02:52.7]} 8...
O-O {[%clk 0:03:00.1]} 9. f4 {[%clk 0:02:52.4]} 9... h6 {[%clk 0:02:57]} 10. O-O
{[%clk 0:02:50]} 10... f5 {[%clk 0:02:56.5]} 11. gxf5 {[%clk 0:02:48.3]} 11...
Nxf5 {[%clk 0:02:56.3]} 12. Ne4 {[%clk 0:02:47.2]} 12... Nh4 {[%clk 0:02:53.8]}
13. N2g3 {[%clk 0:02:41]} 13... Qd7 {[%clk 0:02:47.8]} 14. f5 {[%clk 0:02:36.6]}
14... gxf5 {[%clk 0:02:44.9]} 15. Qh5 {[%clk 0:02:16.3]} 15... Nxg2 {[%clk
0:02:41.7]} 16. Kxg2 {[%clk 0:02:16.1]} 16... fxe4 {[%clk 0:02:41.1]} 17. Rxf8+
{[%clk 0:02:14]} 17... Kxf8 {[%clk 0:02:42]} 18. Nxe4 {[%clk 0:02:13.3]} 18...
Qe7 {[%clk 0:02:38.3]} 19. Bd2 {[%clk 0:02:12.4]} 19... Be6 {[%clk 0:02:34.9]}
20. Rf1+ {[%clk 0:02:11.8]} 20... Kg8 {[%clk 0:02:34.7]} 21. Qg6 {[%clk
0:02:09.6]} 21... Bd5 {[%clk 0:02:34.8]} 22. Kh2 {[%clk 0:02:07.9]} 22... Bxe4
{[%clk 0:02:34.6]} 23. dxe4 {[%clk 0:02:06.5]} 23... Rf8 {[%clk 0:02:34.8]} 24.
Rg1 {[%clk 0:02:05.4]} 24... Rf2+ {[%clk 0:02:33.4]} 25. Rg2 {[%clk 0:02:03]}
25... Rxg2+ {[%clk 0:02:33.2]} 26. Qxg2 {[%clk 0:02:01.5]} 26... Qg5 {[%clk
0:02:31.7]} 27. Be1 {[%clk 0:02:00.6]} 27... Qxg2+ {[%clk 0:02:28.9]} 28. Kxg2
{[%clk 0:02:00.1]} 28... Kf7 {[%clk 0:02:29]} 29. Kf3 {[%clk 0:01:59.7]} 29...
Bf6 {[%clk 0:02:29.9]} 30. a3 {[%clk 0:01:57.4]} 30... Kg6 {[%clk 0:02:30.8]}
31. Kg4 {[%clk 0:01:54.9]} 31... b6 {[%clk 0:02:31.7]} 32. h4 {[%clk 0:01:53.3]}
32... h5+ {[%clk 0:02:32.6]} 33. Kf3 {[%clk 0:01:52.9]} 33... Kf7 {[%clk
0:02:27.2]} 34. b3 {[%clk 0:01:51.3]} 34... Ke6 {[%clk 0:01:59.3]} 35. c4 {[%clk
0:01:50.6]} 35... Ne7 {[%clk 0:01:57.3]} 36. Bf2 {[%clk 0:01:49]} 36... Ng6
{[%clk 0:01:57.4]} 0-1

[Event "*** Titled Tuesday Blitz"]
[Site "Chess.com"]
[Date "2020.12.29"]
[Round "1"]
[White "Msb2"]
[Black "Koksal06"]
[Result "1-0"]
[WhiteElo "2773"]
[BlackElo "2408"]
[TimeControl "180+1"]
[EndTime "10:04:21 PST"]
[Termination "Msb2 won by resignation"]

1. d4 {[%clk 0:03:00.9]} 1... d5 {[%clk 0:02:59.8]} 2. c4 {[%clk 0:03:00.9]}
2... c6 {[%clk 0:03:00.4]} 3. Nc3 {[%clk 0:03:01.6]} 3... Nf6 {[%clk 0:03:00.9]}
4. e3 {[%clk 0:03:02.1]} 4... e6 {[%clk 0:02:59.4]} 5. Nf3 {[%clk 0:03:02.6]}
5... Nbd7 {[%clk 0:02:59.9]} 6. Be2 {[%clk 0:03:03.1]} 6... Bd6 {[%clk
0:03:00.4]} 7. O-O {[%clk 0:03:02.8]} 7... O-O {[%clk 0:03:01]} 8. a4 {[%clk
0:03:03.4]} 8... Qe7 {[%clk 0:02:59.8]} 9. Qc2 {[%clk 0:03:00.8]} 9... dxc4
{[%clk 0:02:59.5]} 10. Bxc4 {[%clk 0:03:00.5]} 10... e5 {[%clk 0:03:00.1]} 11.
h3 {[%clk 0:03:01]} 11... exd4 {[%clk 0:02:34.3]} 12. exd4 {[%clk 0:02:59.7]}
12... Nb6 {[%clk 0:02:33.7]} 13. Re1 {[%clk 0:02:57.1]} 13... Qc7 {[%clk
0:02:27.3]} 14. Bb3 {[%clk 0:02:54.7]} 14... h6 {[%clk 0:01:56.4]} 15. Bxh6
{[%clk 0:02:43.6]} 15... Nbd5 {[%clk 0:01:52.2]} 16. Bg5 {[%clk 0:02:42.6]}
16... Be6 {[%clk 0:01:50.2]} 17. Bxf6 {[%clk 0:02:41.2]} 17... gxf6 {[%clk
0:01:50.2]} 18. Ne4 {[%clk 0:02:17.7]} 18... Be7 {[%clk 0:01:48]} 19. Bxd5
{[%clk 0:02:03.2]} 19... Bxd5 {[%clk 0:01:48]} 20. Nh4 {[%clk 0:02:03.9]} 20...
Qf4 {[%clk 0:01:46.4]} 21. g3 {[%clk 0:02:03.6]} 21... Qc7 {[%clk 0:01:34.9]}
22. Qe2 {[%clk 0:02:03.4]} 22... Be6 {[%clk 0:01:28.7]} 23. Qh5 {[%clk
0:01:55.2]} 23... Rad8 {[%clk 0:01:29.1]} 24. Nf5 {[%clk 0:01:51.8]} 24... Bxf5
{[%clk 0:01:29.2]} 25. Qxf5 {[%clk 0:01:52.7]} 25... Rxd4 {[%clk 0:01:30]} 26.
Nxf6+ {[%clk 0:01:34.3]} 26... Bxf6 {[%clk 0:01:28.4]} 27. Qxf6 {[%clk
0:01:35.2]} 27... Rfd8 {[%clk 0:01:28.4]} 28. Re7 {[%clk 0:01:32.6]} 28... Qf4
{[%clk 0:01:25.4]} 29. gxf4 {[%clk 0:01:31.5]} 1-0

[Event "*** Titled Tuesday Blitz"]
[Site "Chess.com"]
[Date "2020.12.29"]
[Round "1"]
[White "Harry_Rakkel"]
[Black "orestn"]
[Result "1-0"]
[WhiteElo "2639"]
[BlackElo "2335"]
[TimeControl "180+1"]
[EndTime "10:04:25 PST"]
[Termination "Harry_Rakkel won by resignation"]

1. g3 {[%clk 0:03:00.9]} 1... d5 {[%clk 0:02:59.5]} 2. Bg2 {[%clk 0:03:00.5]}
2... e6 {[%clk 0:03:00.4]} 3. d3 {[%clk 0:02:59.4]} 3... Nf6 {[%clk 0:03:01.3]}
4. f4 {[%clk 0:02:54.6]} 4... Be7 {[%clk 0:03:00]} 5. Nf3 {[%clk 0:02:54.2]}
5... a5 {[%clk 0:02:58.6]} 6. O-O {[%clk 0:02:54.3]} 6... c6 {[%clk 0:02:55.9]}
7. h3 {[%clk 0:02:52.2]} 7... b5 {[%clk 0:02:55.1]} 8. Nbd2 {[%clk 0:02:50.4]}
8... b4 {[%clk 0:02:54.6]} 9. e4 {[%clk 0:02:49.8]} 9... dxe4 {[%clk 0:02:51.1]}
10. dxe4 {[%clk 0:02:48.7]} 10... Ba6 {[%clk 0:02:50]} 11. Re1 {[%clk 0:02:42]}
11... Nbd7 {[%clk 0:02:49]} 12. Nf1 {[%clk 0:02:22.4]} 12... Qb6+ {[%clk
0:02:42.6]} 13. Be3 {[%clk 0:02:21.2]} 13... Bc5 {[%clk 0:02:41.7]} 14. Bxc5
{[%clk 0:02:08.4]} 14... Nxc5 {[%clk 0:02:34.1]} 15. Qd4 {[%clk 0:02:07.5]}
15... Ncd7 {[%clk 0:02:32.3]} 16. Qxb6 {[%clk 0:02:04.4]} 16... Nxb6 {[%clk
0:02:32.3]} 17. b3 {[%clk 0:02:03.8]} 17... Ke7 {[%clk 0:02:27.3]} 18. N1d2
{[%clk 0:01:58.2]} 18... Rhd8 {[%clk 0:02:25.2]} 19. Rad1 {[%clk 0:01:56.9]}
19... Rac8 {[%clk 0:02:18.6]} 20. e5 {[%clk 0:01:50.1]} 20... Nfd5 {[%clk
0:02:17.7]} 21. Ne4 {[%clk 0:01:49.8]} 21... c5 {[%clk 0:02:07.6]} 22. Nd6
{[%clk 0:01:45.5]} 22... Rb8 {[%clk 0:02:04.3]} 23. Ng5 {[%clk 0:01:45.8]} 23...
f6 {[%clk 0:01:46.5]} 24. exf6+ {[%clk 0:01:40.6]} 24... Kxd6 {[%clk 0:01:44.8]}
25. Nf7+ {[%clk 0:01:36]} 25... Kc7 {[%clk 0:01:40.7]} 26. Nxd8 {[%clk
0:01:36.9]} 26... Rxd8 {[%clk 0:01:40.8]} 27. fxg7 {[%clk 0:01:36.6]} 27... Rg8
{[%clk 0:01:34.9]} 28. Rxe6 {[%clk 0:01:35]} 28... Rxg7 {[%clk 0:01:34.8]} 29.
Bxd5 {[%clk 0:01:31.7]} 29... Rxg3+ {[%clk 0:01:27.8]} 30. Kf2 {[%clk 0:01:30]}
30... Rg7 {[%clk 0:01:23.6]} 31. Rc6+ {[%clk 0:01:28.7]} 1-0

[Event "*** Titled Tuesday Blitz"]
[Site "Chess.com"]
[Date "2020.12.29"]
[Round "1"]
[White "aa175"]
[Black "1977Ivan"]
[Result "0-1"]
[WhiteElo "2362"]
[BlackElo "2693"]
[TimeControl "180+1"]
[EndTime "10:04:28 PST"]
[Termination "1977Ivan won by resignation"]

1. d4 {[%clk 0:02:41.2]} 1... d5 {[%clk 0:02:58.4]} 2. Bf4 {[%clk 0:02:40.8]}
2... c5 {[%clk 0:02:57.2]} 3. e3 {[%clk 0:02:40.3]} 3... cxd4 {[%clk 0:02:57.1]}
4. exd4 {[%clk 0:02:40.8]} 4... Nc6 {[%clk 0:02:57.4]} 5. Nf3 {[%clk 0:02:40.3]}
5... Bf5 {[%clk 0:02:57.2]} 6. c3 {[%clk 0:02:40.2]} 6... e6 {[%clk 0:02:56.6]}
7. Nbd2 {[%clk 0:02:39.3]} 7... f6 {[%clk 0:02:50]} 8. Nh4 {[%clk 0:02:37]} 8...
g5 {[%clk 0:02:49]} 9. Nxf5 {[%clk 0:02:35.3]} 9... exf5 {[%clk 0:02:49.9]} 10.
Qh5+ {[%clk 0:02:32.5]} 10... Kd7 {[%clk 0:02:45.4]} 11. Be3 {[%clk 0:02:12]}
11... Qe8 {[%clk 0:02:39.3]} 12. Qf3 {[%clk 0:02:08.1]} 12... f4 {[%clk
0:02:33.6]} 13. Qxd5+ {[%clk 0:02:03.7]} 13... Kc7 {[%clk 0:02:33.8]} 14. Bb5
{[%clk 0:01:51.9]} 14... fxe3 {[%clk 0:02:31.5]} 15. Nc4 {[%clk 0:01:20.8]}
15... Rd8 {[%clk 0:02:17.8]} 16. Qf3 {[%clk 0:01:18]} 16... a6 {[%clk
0:01:15.1]} 17. Qh3 {[%clk 0:01:00.8]} 0-1

[Event "*** Titled Tuesday Blitz"]
[Site "Chess.com"]
[Date "2020.12.29"]
[Round "1"]
[White "Artyom_ChessMate"]
[Black "MarcoCorvi"]
[Result "0-1"]
[WhiteElo "2505"]
[BlackElo "2194"]
[TimeControl "180+1"]
[EndTime "10:04:29 PST"]
[Termination "MarcoCorvi won by resignation"]

1. e4 {[%clk 0:03:00.9]} 1... Nf6 {[%clk 0:02:59.4]} 2. e5 {[%clk 0:03:01]} 2...
Nd5 {[%clk 0:02:59.3]} 3. d4 {[%clk 0:03:01.9]} 3... d6 {[%clk 0:02:59.7]} 4.
Nf3 {[%clk 0:03:02.8]} 4... dxe5 {[%clk 0:02:58.3]} 5. Nxe5 {[%clk 0:03:03.7]}
5... c6 {[%clk 0:02:58.7]} 6. Be2 {[%clk 0:03:03.5]} 6... Bf5 {[%clk 0:02:56.1]}
7. O-O {[%clk 0:03:03.3]} 7... Nd7 {[%clk 0:02:55.3]} 8. Nf3 {[%clk 0:03:03.4]}
8... e6 {[%clk 0:02:49.9]} 9. c4 {[%clk 0:03:03.3]} 9... Nb4 {[%clk 0:02:47.6]}
10. Nc3 {[%clk 0:03:00.8]} 10... Be7 {[%clk 0:02:39.8]} 11. a3 {[%clk
0:03:00.7]} 11... Na6 {[%clk 0:02:36.3]} 12. Bf4 {[%clk 0:02:59.9]} 12... O-O
{[%clk 0:02:34.4]} 13. h3 {[%clk 0:02:59.8]} 13... h6 {[%clk 0:02:32.8]} 14. b4
{[%clk 0:02:59.8]} 14... Nc7 {[%clk 0:02:30.7]} 15. Rc1 {[%clk 0:02:59.2]} 15...
Ne8 {[%clk 0:02:28.5]} 16. Bh2 {[%clk 0:02:58.5]} 16... Bd6 {[%clk 0:02:26.3]}
17. Re1 {[%clk 0:02:58.2]} 17... Bxh2+ {[%clk 0:02:25.4]} 18. Nxh2 {[%clk
0:02:59.1]} 18... Nef6 {[%clk 0:02:23]} 19. Nf3 {[%clk 0:02:58.1]} 19... Ne4
{[%clk 0:02:14.3]} 20. Bd3 {[%clk 0:02:56.9]} 20... Nxc3 {[%clk 0:02:13.5]} 21.
Rxc3 {[%clk 0:02:57.8]} 21... Bxd3 {[%clk 0:02:13.4]} 22. Rxd3 {[%clk
0:02:58.7]} 22... Qc7 {[%clk 0:02:07.8]} 23. Ne5 {[%clk 0:02:52.8]} 23... Nxe5
{[%clk 0:02:06]} 24. Rxe5 {[%clk 0:02:53.7]} 24... Rad8 {[%clk 0:02:01.4]} 25.
Qe2 {[%clk 0:02:48.5]} 25... Rd7 {[%clk 0:01:54.2]} 26. Re4 {[%clk 0:02:24.4]}
26... Rfd8 {[%clk 0:01:53.1]} 27. Rg4 {[%clk 0:02:24]} 27... g6 {[%clk
0:01:19.4]} 28. Qe4 {[%clk 0:02:11.8]} 28... Kh7 {[%clk 0:01:09.4]} 29. h4
{[%clk 0:02:09.5]} 29... f5 {[%clk 0:01:06.6]} 0-1

[Event "*** Titled Tuesday Blitz"]
[Site "Chess.com"]
[Date "2020.12.29"]
[Round "1"]
[White "SanchezKelvin"]
[Black "bogcsab"]
[Result "1-0"]
[WhiteElo "2481"]
[BlackElo "1953"]
[TimeControl "180+1"]
[EndTime "10:04:33 PST"]
[Termination "SanchezKelvin won by resignation"]

1. d4 {[%clk 0:02:57.8]} 1... Nf6 {[%clk 0:02:58.9]} 2. c4 {[%clk 0:02:56.8]}
2... g6 {[%clk 0:02:58.7]} 3. Nf3 {[%clk 0:02:56]} 3... Bg7 {[%clk 0:02:58.8]}
4. g3 {[%clk 0:02:56.2]} 4... d6 {[%clk 0:02:58.9]} 5. Bg2 {[%clk 0:02:56.6]}
5... O-O {[%clk 0:02:59.1]} 6. O-O {[%clk 0:02:57]} 6... Nbd7 {[%clk 0:02:59.7]}
7. Nc3 {[%clk 0:02:56.9]} 7... e5 {[%clk 0:02:59.8]} 8. e4 {[%clk 0:02:57]} 8...
c6 {[%clk 0:02:59.4]} 9. dxe5 {[%clk 0:02:56.6]} 9... dxe5 {[%clk 0:02:58.9]}
10. h3 {[%clk 0:02:54.3]} 10... Qe7 {[%clk 0:02:58.8]} 11. Be3 {[%clk 0:02:54]}
11... Ne8 {[%clk 0:02:58.5]} 12. Qd2 {[%clk 0:02:53.9]} 12... f5 {[%clk
0:02:58.3]} 13. exf5 {[%clk 0:02:49.6]} 13... gxf5 {[%clk 0:02:57.8]} 14. Bh6
{[%clk 0:02:46.8]} 14... e4 {[%clk 0:02:48.3]} 15. Nh2 {[%clk 0:02:40.4]} 15...
Ne5 {[%clk 0:02:39.7]} 16. Bxg7 {[%clk 0:02:33.8]} 16... Nxg7 {[%clk 0:02:31.6]}
17. b3 {[%clk 0:02:32.8]} 17... Be6 {[%clk 0:02:27.8]} 18. Qf4 {[%clk
0:02:13.6]} 18... Ng6 {[%clk 0:02:25.7]} 19. Qe3 {[%clk 0:02:10.4]} 19... Rad8
{[%clk 0:02:24.1]} 20. Rad1 {[%clk 0:02:08.8]} 20... b6 {[%clk 0:02:17.3]} 21.
g4 {[%clk 0:02:04.1]} 21... Rfe8 {[%clk 0:01:16.2]} 22. gxf5 {[%clk 0:02:00.7]}
22... Bxf5 {[%clk 0:01:13.9]} 23. Ng4 {[%clk 0:01:45.6]} 23... Rxd1 {[%clk
0:01:07.9]} 24. Rxd1 {[%clk 0:01:43.9]} 24... Nh5 {[%clk 0:01:07.3]} 25. Nh6+
{[%clk 0:01:42.6]} 1-0

[Event "*** Titled Tuesday Blitz"]
[Site "Chess.com"]
[Date "2020.12.29"]
[Round "1"]
[White "Fh2411"]
[Black "garicradomir"]
[Result "1-0"]
[WhiteElo "2570"]
[BlackElo "2275"]
[TimeControl "180+1"]
[EndTime "10:04:34 PST"]
[Termination "Fh2411 won by resignation"]

1. d4 {[%clk 0:03:00.9]} 1... Nf6 {[%clk 0:02:58.8]} 2. Nf3 {[%clk 0:03:01.4]}
2... c5 {[%clk 0:02:58.2]} 3. d5 {[%clk 0:03:00.6]} 3... g6 {[%clk 0:02:58.3]}
4. c4 {[%clk 0:03:01.1]} 4... b5 {[%clk 0:02:57.5]} 5. cxb5 {[%clk 0:02:54.8]}
5... a6 {[%clk 0:02:57.3]} 6. bxa6 {[%clk 0:02:53.2]} 6... Bxa6 {[%clk
0:02:56.2]} 7. Nc3 {[%clk 0:02:54.1]} 7... Bg7 {[%clk 0:02:56.3]} 8. g3 {[%clk
0:02:51.3]} 8... d6 {[%clk 0:02:53.8]} 9. Bg2 {[%clk 0:02:51.2]} 9... Nbd7
{[%clk 0:02:52]} 10. O-O {[%clk 0:02:52.1]} 10... O-O {[%clk 0:02:52]} 11. Qc2
{[%clk 0:02:44.7]} 11... Ra7 {[%clk 0:02:51.8]} 12. Rd1 {[%clk 0:02:42.6]} 12...
Qa8 {[%clk 0:02:51.8]} 13. b3 {[%clk 0:02:36.3]} 13... Rb8 {[%clk 0:02:45.3]}
14. Nd2 {[%clk 0:02:24.4]} 14... Nb6 {[%clk 0:02:25.9]} 15. e4 {[%clk
0:02:14.7]} 15... Ng4 {[%clk 0:02:21.7]} 16. Bb2 {[%clk 0:02:09.2]} 16... Ne5
{[%clk 0:02:21.6]} 17. Nf3 {[%clk 0:02:05]} 17... Nxf3+ {[%clk 0:02:16.3]} 18.
Bxf3 {[%clk 0:02:04.2]} 18... Nd7 {[%clk 0:02:12.8]} 19. Be2 {[%clk 0:02:01]}
19... c4 {[%clk 0:02:07.5]} 20. bxc4 {[%clk 0:01:40.6]} 20... Rab7 {[%clk
0:02:05.8]} 21. Nb5 {[%clk 0:01:36.1]} 21... Ne5 {[%clk 0:01:56.4]} 22. a4
{[%clk 0:01:34]} 22... Rc8 {[%clk 0:01:55.7]} 23. Qb3 {[%clk 0:01:29.3]} 23...
Bxb5 {[%clk 0:01:51.5]} 24. cxb5 {[%clk 0:01:21.1]} 24... Nd7 {[%clk 0:01:45]}
25. Bxg7 {[%clk 0:01:19.7]} 25... Kxg7 {[%clk 0:01:45.9]} 26. a5 {[%clk
0:01:17.5]} 26... Rbc7 {[%clk 0:01:45.3]} 27. b6 {[%clk 0:01:14.7]} 27... Rc3
{[%clk 0:01:44.9]} 28. Qb2 {[%clk 0:01:14.8]} 28... f6 {[%clk 0:01:41.6]} 29. b7
{[%clk 0:01:08]} 1-0

[Event "*** Titled Tuesday Blitz"]
[Site "Chess.com"]
[Date "2020.12.29"]
[Round "1"]
[White "Sviridov_Valery"]
[Black "anon481216"]
[Result "1-0"]
[WhiteElo "2852"]
[BlackElo "2442"]
[TimeControl "180+1"]
[EndTime "10:04:36 PST"]
[Termination "Sviridov_Valery won by resignation"]

1. Nf3 {[%clk 0:02:46.9]} 1... c5 {[%clk 0:02:58.8]} 2. g3 {[%clk 0:02:46.3]}
2... Nc6 {[%clk 0:02:59]} 3. Bg2 {[%clk 0:02:46.9]} 3... g6 {[%clk 0:02:59.3]}
4. O-O {[%clk 0:02:46.3]} 4... Bg7 {[%clk 0:02:59.7]} 5. c4 {[%clk 0:02:46.1]}
5... e5 {[%clk 0:02:59.9]} 6. Nc3 {[%clk 0:02:46]} 6... d6 {[%clk 0:02:59.8]} 7.
Ne1 {[%clk 0:02:46.4]} 7... Be6 {[%clk 0:02:57.2]} 8. d3 {[%clk 0:02:44.4]} 8...
Nge7 {[%clk 0:02:56.8]} 9. Nc2 {[%clk 0:02:43.4]} 9... d5 {[%clk 0:02:53.5]} 10.
cxd5 {[%clk 0:02:43.6]} 10... Nxd5 {[%clk 0:02:53.7]} 11. Ne4 {[%clk 0:02:44.5]}
11... b6 {[%clk 0:02:49.5]} 12. Ng5 {[%clk 0:02:43.9]} 12... Bc8 {[%clk
0:02:33.7]} 13. Ne3 {[%clk 0:02:41.6]} 13... Qxg5 {[%clk 0:02:16.2]} 14. Nxd5
{[%clk 0:02:20.6]} 14... Qd8 {[%clk 0:02:15.1]} 15. Nb4 {[%clk 0:02:19.1]} 15...
cxb4 {[%clk 0:01:59]} 16. Bxc6+ {[%clk 0:02:18]} 16... Bd7 {[%clk 0:01:58.6]}
17. Bxa8 {[%clk 0:02:18.9]} 17... Qxa8 {[%clk 0:01:58.8]} 18. f3 {[%clk
0:02:08.4]} 18... Bh3 {[%clk 0:01:43.5]} 19. Qa4+ {[%clk 0:02:05.7]} 19... Kf8
{[%clk 0:01:34.1]} 20. Qxb4+ {[%clk 0:02:04.1]} 20... Kg8 {[%clk 0:01:34.5]} 21.
Rf2 {[%clk 0:02:02.7]} 21... h5 {[%clk 0:01:34.1]} 22. Be3 {[%clk 0:01:58.2]}
22... f5 {[%clk 0:01:20.6]} 23. Rc1 {[%clk 0:01:56]} 23... h4 {[%clk 0:01:15.9]}
24. Rc7 {[%clk 0:01:40.8]} 1-0